fUSD/lending_fUSD_20250923
["ID","MTS","AMOUNT","RATE_DAILY","PERIOD"]
[387175601,1758606680043,-400.0,0.00021313,2]
[387175602,1758606680052,-289.54550483,0.00021313,2]
[387175603,1758606680061,-400.0,0.00021313,2]
[387175604,1758606680070,-400.0,0.00021313,2]
[387175605,1758606680079,-400.0,0.00021313,2]
[387175606,1758606680090,-400.0,0.00021313,2]
[387175607,1758606680099,-400.0,0.00021313,2]
[387175608,1758606680109,-546.26,0.00021313,2]
[387175609,1758606680118,-400.0,0.00021313,2]
[387175610,1758606680128,-400.0,0.00021313,2]
[387175611,1758606680137,-459.17,0.00021313,2]
[387175612,1758606680146,-400.0,0.00021313,2]
[387175613,1758606680156,-400.0,0.00021313,2]
[387175614,1758606680166,-400.0,0.00021313,2]
[387175615,1758606680175,-400.0,0.00021313,2]
[387175616,1758606680185,-594.39,0.00021313,2]
[387175617,1758606680195,-167.146727,0.00021313,2]
[387175618,1758606680204,-400.0,0.00021313,2]
[387175619,1758606680213,-400.0,0.00021313,2]
[387175620,1758606680223,-400.0,0.00021313,2]
[387175621,1758606680233,-400.0,0.00021313,2]
[387175622,1758606680243,-400.0,0.00021313,2]
[387175623,1758606680252,-413.61,0.00021313,2]
[387175624,1758606680261,-1791.94,0.00021313,2]
[387175625,1758606680271,-400.0,0.00021313,2]
[387175626,1758606680280,-400.0,0.00021313,2]
[387175627,1758606680289,-400.0,0.00021313,2]
[387175628,1758606680298,-400.0,0.00021313,2]
[387175629,1758606680307,-400.0,0.00021313,2]
[387175630,1758606680316,-727.44,0.00021313,2]
[387175631,1758606680325,-400.0,0.00021313,2]
[387175632,1758606680335,-414.47,0.00021313,2]
[387175633,1758606680344,-386.46278843,0.00021313,2]
[387175634,1758606680353,-424.1,0.00021313,2]
[387175635,1758606680363,-400.0,0.00021313,2]
[387175636,1758606680372,-400.0,0.00021313,2]
[387175637,1758606680381,-680.28,0.00021313,2]
[387175638,1758606680390,-400.0,0.00021313,2]
[387175639,1758606680399,-366.60481362,0.00021313,2]
[387175640,1758606680408,-400.0,0.00021313,2]
[387175641,1758606680418,-425.64,0.00021313,2]
[387175642,1758606680427,-405.16761184,0.00021313,2]
[387175643,1758606680436,-740.8,0.00021313,2]
[387175644,1758606680445,-400.0,0.00021313,2]
[387175645,1758606680455,-780.25,0.00021313,2]
[387175646,1758606680464,-400.0,0.00021313,2]
[387175647,1758606680473,-439.62363245,0.00021313,2]
[387175648,1758606680483,-495.36699728,0.00021313,2]
[387175649,1758606680492,-787.95,0.00021313,2]
[387175650,1758606680501,-400.9,0.00021313,2]
[387175651,1758606680510,-400.0,0.00021313,2]
[387175652,1758606680519,-573.0,0.00021313,2]
[387175653,1758606680529,-439.84,0.00021313,2]
[387175654,1758606680537,-400.0,0.00021313,2]
[387175655,1758606680547,-179.67523268,0.00021313,2]
[387175656,1758606680556,-431.67364268,0.00021313,2]
[387175657,1758606680565,-807.44,0.00021313,2]
[387175658,1758606680574,-1136.38,0.00021313,2]
[387175659,1758606680583,-326.629712,0.00021313,2]
[387175660,1758606680763,-406.95081238,0.00021313,2]
[387175661,1758606680773,-2423.02,0.00021313,2]
[387175662,1758606680783,-400.0,0.00021313,2]
[387175663,1758606680792,-823.48,0.00021342,2]
[387175664,1758606680806,-563.0,0.00021345,2]
[387175665,1758606680815,-400.0,0.00021345,2]
[387175666,1758606680824,-454.75,0.00021345,2]
[387175667,1758606680833,-604.44,0.00021345,2]
[387175668,1758606680843,-533.49,0.00021345,2]
[387175669,1758606680853,-694.1,0.00021345,2]
[387175670,1758606680862,-400.0,0.00021345,2]
[387175671,1758606680872,-422.59,0.00021345,2]
[387175672,1758606680884,-400.0,0.00021345,2]
[387175673,1758606680895,-717.78,0.00021345,2]
[387175674,1758606680904,-431.15,0.00021345,2]
[387175675,1758606680913,-400.0,0.00021345,2]
[387175676,1758606680923,-427.27,0.00021345,2]
[387175677,1758606680932,-614.75,0.00021345,2]
[387175678,1758606680941,-669.49,0.00021345,2]
[387175679,1758606680950,-400.0,0.00021345,2]
[387175680,1758606680960,-400.0,0.00021345,2]
[387175681,1758606680969,-418.8,0.00021345,2]
[387175682,1758606680979,-573.35,0.00021345,2]
[387175683,1758606680990,-403.2,0.00021345,2]
[387175684,1758606680999,-400.0,0.00021345,2]
[387175685,1758606681009,-400.0,0.00021345,2]
[387175686,1758606681018,-685.05,0.00021345,2]
[387175687,1758606681028,-400.0,0.00021345,2]
[387175688,1758606681037,-435.99,0.00021345,2]
[387175689,1758606681047,-592.9,0.00021345,2]
[387175690,1758606681056,-528.93,0.00021345,2]
[387175691,1758606681066,-796.37,0.00021345,2]
[387175692,1758606681075,-400.0,0.00021345,2]
[387175693,1758606681084,-461.3,0.00021345,2]
[387175694,1758606681094,-400.0,0.00021345,2]
[387175695,1758606681102,-400.0,0.00021345,2]
[387175696,1758606681112,-400.0,0.00021345,2]
[387175697,1758606681121,-400.0,0.00021345,2]
[387175698,1758606681131,-551.65,0.00021345,2]
[387175699,1758606681140,-445.76,0.00021345,2]
[387175700,1758606681150,-620.26,0.00021345,2]
[387175701,1758606681159,-474.03,0.00021345,2]
[387175702,1758606681168,-400.0,0.00021345,2]
[387175703,1758606681177,-400.0,0.00021345,2]
[387175704,1758606681186,-400.0,0.00021345,2]
[387175705,1758606681196,-400.0,0.00021345,2]
[387175706,1758606681205,-400.0,0.00021345,2]
[387175707,1758606681215,-1134.69,0.00021345,2]
[387175708,1758606681224,-553.2,0.00021345,2]
[387175709,1758606681233,-400.0,0.00021345,2]
[387175710,1758606681242,-400.0,0.00021345,2]
[387175711,1758606681251,-560.87,0.00021345,2]
[387175712,1758606681260,-669.97,0.00021345,2]
[387175713,1758606681269,-518.47,0.00021345,2]
[387175714,1758606681279,-603.36,0.00021345,2]
[387175715,1758606681288,-507.24,0.00021345,2]
[387175716,1758606681298,-1226.65,0.00021345,2]
[387175717,1758606681307,-400.0,0.00021345,2]
[387175718,1758606681317,-510.08,0.00021345,2]
[387175719,1758606681326,-400.0,0.00021345,2]
[387175720,1758606681335,-2244.82,0.00021345,2]
[387175721,1758606681344,-3137.54,0.00021345,2]
[387175722,1758606681354,-3479.82,0.00021345,2]
[387175723,1758606681363,-478.17,0.00021345,2]
[387175724,1758606681373,-317.1266949,0.00021345,2]
[387175725,1758606681383,-1313.4,0.00021345,2]
[387175726,1758606681391,-400.0,0.00021345,2]
[387175727,1758606681400,-766.42,0.00021345,2]
[387175728,1758606681410,-400.0,0.00021345,2]
[387175729,1758606681419,-631.18,0.00021345,2]
[387175730,1758606681428,-400.0,0.00021364,2]
[387175731,1758606681437,-479.31,0.00021364,2]
[387175732,1758606681446,-626.98,0.00021364,2]
[387175733,1758606681455,-400.0,0.00021364,2]
[387175734,1758606681464,-600.75,0.00021364,2]
[387175735,1758606681473,-203.55851123,0.00021364,2]
[387175736,1758606681483,-595.41,0.00021364,2]
[387175737,1758606681492,-400.0,0.00021364,2]
[387175738,1758606681502,-400.0,0.00021364,2]
[387175739,1758606681511,-400.0,0.00021364,2]
[387175740,1758606681520,-400.0,0.00021364,2]
[387175741,1758606681529,-400.0,0.00021364,2]
[387175742,1758606681538,-400.0,0.00021364,2]
[387175743,1758606681547,-609.2,0.00021364,2]
[387175744,1758606681556,-400.0,0.00021364,2]
[387175745,1758606681565,-400.0,0.00021364,2]
[387175746,1758606681575,-400.0,0.00021364,2]
[387175747,1758606681584,-572.39,0.00021364,2]
[387175748,1758606681593,-400.0,0.00021364,2]
[387175749,1758606681603,-710.43,0.00021364,2]
[387175750,1758606681612,-400.0,0.00021364,2]
[387175751,1758606681622,-633.16,0.00021364,2]
[387175752,1758606681631,-400.0,0.00021364,2]
[387175753,1758606681640,-473.7,0.00021364,2]
[387175754,1758606681650,-400.0,0.00021364,2]
[387175755,1758606681659,-276.17500802,0.00021364,2]
[387175756,1758606681669,-719.16,0.00021364,2]
[387175757,1758606681678,-407.66,0.00021364,2]
[387175758,1758606681687,-619.74,0.00021364,2]
[387175759,1758606681697,-637.23,0.00021364,2]
[387175760,1758606681706,-474.07,0.00021364,2]
[387175761,1758606681715,-872.07,0.00021364,2]
[387175762,1758606681724,-400.0,0.00021364,2]
[387175763,1758606681734,-1253.57,0.00021364,2]
[387175764,1758606681744,-205.91,0.00021364,2]
[387175765,1758606681753,-400.0,0.00021364,2]
[387175766,1758606681762,-702.37,0.00021364,2]
[387175767,1758606681772,-400.0,0.00021364,2]
[387175768,1758606681782,-400.0,0.00021364,2]
[387175769,1758606681791,-400.0,0.00021364,2]
[387175770,1758606681801,-163.70816145,0.00021364,2]
[387175771,1758606681813,-400.0,0.00021364,2]
[387175772,1758606681823,-803.52,0.00021364,2]
[387175773,1758606681832,-623.72,0.00021364,2]
[387175774,1758606681842,-758.11,0.00021364,2]
[387175775,1758606681851,-400.0,0.00021364,2]
[387175776,1758606681861,-400.0,0.00021364,2]
[387175777,1758606681871,-944.55,0.00021364,2]
[387175778,1758606681880,-887.18,0.00021364,2]
[387175779,1758606681890,-400.0,0.00021365,2]
[387175780,1758606681899,-400.0,0.00021365,2]
[387175781,1758606681908,-400.0,0.00021365,2]
[387175782,1758606681917,-339.16,0.00021365,2]
[387175783,1758606681926,-511.28808133,0.00021365,2]
[387175784,1758606681936,-400.0,0.00021365,2]
[387175785,1758606681946,-400.0,0.00021365,2]
[387175786,1758606681956,-215.34989861,0.00021365,2]
[387175787,1758606681965,-400.0,0.00021365,2]
[387175788,1758606681975,-400.0,0.00021365,2]
[387175789,1758606681984,-560.23,0.00021365,2]
[387175790,1758606681993,-377.84,0.00021365,2]
[387175791,1758606682002,-400.0,0.00021365,2]
[387175792,1758606682011,-400.0,0.00021365,2]
[387175793,1758606682020,-502.61,0.00021365,2]
[387175794,1758606682030,-694.79,0.00021365,2]
[387175795,1758606682039,-1317.09,0.00021365,2]
[387175796,1758606682049,-1372.63,0.00021365,2]
[387175797,1758606682059,-943.76,0.00021365,2]
[387175798,1758606682068,-400.0,0.00021365,2]
[387175799,1758606682078,-400.0,0.00021365,2]
[387175800,1758606682087,-543.44,0.00021365,2]
[387175801,1758606682096,-867.38,0.00021365,2]
[387175802,1758606682106,-400.0,0.00021365,2]
[387175803,1758606682115,-400.0,0.00021365,2]
[387175804,1758606682124,-1566.28,0.00021365,2]
[387175805,1758606682133,-203.84985297,0.00021366,2]
[387175806,1758606682142,-500.0,0.00021366,2]
[387175807,1758606682152,-1508.0,0.00021366,2]
[387175808,1758606682161,-500.0,0.00021366,2]
[387175809,1758606682170,-500.0,0.00021366,2]
[387175810,1758606682179,-466.0,0.00021366,2]
[387175811,1758606682188,-447.0,0.00021366,2]
[387175812,1758606682198,-500.0,0.00021366,2]
[387175813,1758606682207,-400.0,0.00021366,2]
[387175814,1758606682216,-400.0,0.00021366,2]
[387175815,1758606682225,-403.17,0.00021366,2]
[387175816,1758606682236,-400.0,0.00021366,2]
[387175817,1758606682245,-400.0,0.00021366,2]
[387175818,1758606682255,-400.0,0.00021366,2]
[387175819,1758606682264,-400.0,0.00021366,2]
[387175820,1758606682274,-422.99,0.00021366,2]
[387175821,1758606682283,-400.0,0.00021366,2]
[387175822,1758606682292,-272.12618449,0.00021366,2]
[387175823,1758606682301,-400.0,0.00021366,2]
[387175824,1758606682310,-400.0,0.00021366,2]
[387175825,1758606682320,-400.0,0.00021366,2]
[387175826,1758606682329,-400.0,0.00021366,2]
[387175827,1758606682338,-400.0,0.00021366,2]
[387175828,1758606682347,-400.0,0.00021366,2]
[387175829,1758606682356,-409.53170761,0.00021366,2]
[387175830,1758606682365,-400.0,0.00021366,2]
[387175831,1758606682375,-400.0,0.00021366,2]
[387175832,1758606682384,-400.0,0.00021366,2]
[387175833,1758606682393,-400.0,0.00021366,2]
[387175834,1758606682403,-500.0,0.00021366,14]
[387175835,1758606682412,-400.0,0.00021366,2]
[387175836,1758606682421,-400.0,0.00021366,2]
[387175837,1758606682430,-400.0,0.00021366,2]
[387175838,1758606682439,-400.0,0.00021366,2]
[387175839,1758606682449,-411.68,0.00021366,2]
[387175840,1758606682458,-400.0,0.00021366,2]
[387175841,1758606682468,-400.0,0.00021366,2]
[387175842,1758606682477,-400.0,0.00021366,2]
[387175843,1758606682487,-400.0,0.00021366,2]
[387175844,1758606682497,-400.0,0.00021366,2]
[387175845,1758606682506,-400.0,0.00021366,2]
[387175846,1758606682515,-400.0,0.00021366,2]
[387175847,1758606682524,-481.79703094,0.00021366,2]
[387175848,1758606682533,-400.0,0.00021366,2]
[387175849,1758606682543,-400.0,0.00021366,2]
[387175850,1758606682552,-400.0,0.00021366,2]
[387175851,1758606682561,-400.0,0.00021366,2]
[387175852,1758606682570,-400.0,0.00021366,2]
[387175853,1758606682579,-400.0,0.00021366,2]
[387175854,1758606682588,-400.0,0.00021366,2]
[387175855,1758606682598,-400.0,0.00021366,2]
[387175856,1758606682607,-400.0,0.00021366,2]
[387175857,1758606682616,-400.0,0.00021366,2]
[387175858,1758606682625,-400.0,0.00021366,2]
[387175859,1758606682635,-358.69689655,0.00021366,2]
[387175860,1758606682643,-430.64,0.00021366,2]
[387175861,1758606682652,-400.0,0.00021366,2]
[387175862,1758606682662,-400.0,0.00021366,2]
[387175863,1758606682671,-400.0,0.00021366,2]
[387175864,1758606682680,-419.42,0.00021366,2]
[387175865,1758606682689,-466.90488224,0.00021366,2]
[387175866,1758606682698,-429.28,0.00021366,2]
[387175867,1758606682708,-400.0,0.00021366,2]
[387175868,1758606682718,-388.36,0.00021366,2]
[387175869,1758606682727,-720.6,0.00021366,2]
[387175870,1758606682736,-400.0,0.00021366,2]
[387175871,1758606682746,-400.0,0.00021366,2]
[387175872,1758606682754,-400.0,0.00021366,2]
[387175873,1758606682763,-400.0,0.00021366,2]
[387175874,1758606682772,-400.0,0.00021366,2]
[387175875,1758606682781,-540.18,0.00021366,2]
[387175876,1758606682791,-400.0,0.00021366,2]
[387175877,1758606682802,-500.48,0.00021366,2]
[387175878,1758606682813,-460.67,0.00021366,2]
[387175879,1758606682823,-400.0,0.00021366,2]
[387175880,1758606682832,-400.0,0.00021366,2]
[387175881,1758606682841,-400.0,0.00021366,2]
[387175882,1758606682850,-400.0,0.00021366,2]
[387175883,1758606682860,-400.0,0.00021366,2]
[387175884,1758606682874,-400.0,0.00021366,2]
[387175885,1758606682885,-400.0,0.00021366,2]
[387175886,1758606682894,-400.0,0.00021366,2]
[387175887,1758606682903,-400.0,0.00021366,2]
[387175888,1758606682912,-400.0,0.00021366,2]
[387175889,1758606682921,-400.0,0.00021366,2]
[387175890,1758606682931,-707.53,0.00021366,2]
[387175891,1758606682941,-400.0,0.00021366,2]
[387175892,1758606682950,-400.0,0.00021366,2]
[387175893,1758606682960,-520.4,0.00021366,2]
[387175894,1758606682969,-400.0,0.00021366,2]
[387175895,1758606682978,-400.0,0.00021366,2]
[387175896,1758606682988,-400.0,0.00021366,2]
[387175897,1758606682998,-400.0,0.00021366,2]
[387175898,1758606683007,-400.0,0.00021366,2]
[387175899,1758606683017,-400.0,0.00021366,2]
[387175900,1758606683026,-400.0,0.00021366,2]
[387175901,1758606683035,-400.0,0.00021366,2]
[387175902,1758606683045,-400.0,0.00021366,2]
[387175903,1758606683054,-400.0,0.00021366,2]
[387175904,1758606683064,-431.34,0.00021366,2]
[387175905,1758606683073,-400.0,0.00021366,2]
[387175906,1758606683083,-400.0,0.00021366,2]
[387175907,1758606683092,-400.0,0.00021366,2]
[387175908,1758606683103,-400.0,0.00021366,2]
[387175909,1758606683112,-400.0,0.00021366,2]
[387175910,1758606683122,-400.0,0.00021366,2]
[387175911,1758606683131,-400.0,0.00021366,2]
[387175912,1758606683140,-555.13,0.00021366,2]
[387175913,1758606683149,-400.0,0.00021366,2]
[387175914,1758606683159,-400.0,0.00021366,2]
[387175915,1758606683168,-400.0,0.00021366,2]
[387175916,1758606683177,-400.0,0.00021366,2]
[387175917,1758606683187,-400.0,0.00021366,2]
[387175918,1758606683196,-400.0,0.00021366,2]
[387175919,1758606683205,-400.0,0.00021366,2]
[387175920,1758606683214,-821.12,0.00021366,2]
[387175921,1758606683223,-400.0,0.00021366,2]
[387175922,1758606683233,-400.0,0.00021366,2]
[387175923,1758606683242,-400.0,0.00021366,2]
[387175924,1758606683253,-400.0,0.00021366,2]
[387175925,1758606683262,-400.0,0.00021366,2]
[387175926,1758606683271,-400.0,0.00021366,2]
[387175927,1758606683281,-400.0,0.00021366,2]
[387175928,1758606683290,-400.0,0.00021366,2]
[387175929,1758606683299,-400.0,0.00021366,2]
[387175930,1758606683308,-400.0,0.00021366,2]
[387175931,1758606683320,-400.0,0.00021366,2]
[387175932,1758606683330,-706.34,0.00021366,2]
[387175933,1758606683339,-400.0,0.00021366,2]
[387175934,1758606683348,-1759.45,0.00021366,2]
[387175935,1758606683358,-544.21,0.00021366,2]
[387175936,1758606683366,-400.0,0.00021366,2]
[387175937,1758606683375,-400.0,0.00021366,2]
[387175938,1758606683384,-400.0,0.00021366,2]
[387175939,1758606683393,-400.0,0.00021366,2]
[387175940,1758606683402,-400.0,0.00021366,2]
[387175941,1758606683411,-400.0,0.00021366,2]
[387175942,1758606683420,-431.44,0.00021366,2]
[387175943,1758606683429,-568.99,0.00021366,2]
[387175944,1758606683438,-400.0,0.00021366,2]
[387175945,1758606683447,-517.07,0.00021366,2]
[387175946,1758606683457,-400.0,0.00021366,2]
[387175947,1758606683467,-623.33,0.00021366,2]
[387175948,1758606683476,-400.0,0.00021366,2]
[387175949,1758606683486,-400.0,0.00021366,2]
[387175950,1758606683496,-546.18,0.00021366,2]
[387175951,1758606683505,-400.0,0.00021366,2]
[387175952,1758606683515,-400.0,0.00021366,2]
[387175953,1758606683524,-5720.27,0.00021366,2]
[387175954,1758606683534,-400.0,0.00021366,2]
[387175955,1758606683543,-400.0,0.00021366,2]
[387175956,1758606683553,-440.55,0.00021366,2]
[387175957,1758606683562,-400.0,0.00021366,2]
[387175958,1758606683571,-400.0,0.00021366,2]
[387175959,1758606683581,-667.61,0.00021366,2]
[387175960,1758606683590,-400.0,0.00021366,2]
[387175961,1758606683605,-743.54,0.00021366,2]
[387175962,1758606683614,-461.52,0.00021366,2]
[387175963,1758606683624,-847.6,0.00021366,2]
[387175964,1758606683796,-400.0,0.00021366,2]
[387175965,1758606683809,-400.0,0.00021366,2]
[387175966,1758606683819,-400.0,0.00021367,2]
[387175967,1758606683828,-1500.0,0.00021368,2]
[387175968,1758606683838,-1500.0,0.00021368,2]
[387175969,1758606683847,-501.80022648,0.00021368,2]
[387175970,1758606683856,-505.31521346,0.00021368,2]
[387175971,1758606683865,-1501.0544409,0.00021368,2]
[387175972,1758606683874,-503.0384679,0.00021368,2]
[387175973,1758606683884,-150.0,0.00021373,2]
[387175974,1758606683895,-9774.27257195,0.0002139,2]
[387175975,1758606683904,-168.0,0.00021456,2]
[387175976,1758606683914,-400.0,0.00021487,2]
[387175977,1758606683923,-400.0,0.00021487,2]
[387175978,1758606683933,-490.21,0.00021487,2]
[387175979,1758606683942,-400.0,0.00021487,2]
[387175980,1758606683952,-400.0,0.00021487,2]
[387175981,1758606683961,-708.2,0.00021487,2]
[387175982,1758606683971,-400.0,0.00021487,2]
[387175983,1758606683981,-400.0,0.00021487,2]
[387175984,1758606683990,-1094.34,0.00021487,2]
[387175985,1758606684000,-593.45,0.00021487,2]
[387175986,1758606684010,-880.86,0.00021487,2]
[387175987,1758606684020,-618.75,0.000215,7]
[387175988,1758606684029,-11476.73221229,0.0002153,2]
[387175989,1758606684038,-150.24,0.00021583,2]
[387175990,1758606684047,-400.0,0.00021587,2]
[387175991,1758606684056,-460.07997746,0.00021587,2]
[387175992,1758606684066,-400.0,0.00021587,2]
[387175993,1758606684075,-400.0,0.00021587,2]
[387175994,1758606684084,-400.0,0.00021587,2]
[387175995,1758606684094,-546.26,0.00021587,2]
[387175996,1758606684103,-187.79,0.00021587,2]
[387175997,1758606684112,-400.0,0.00021587,2]
[387175998,1758606684122,-459.17,0.00021587,2]
[387175999,1758606684131,-400.0,0.00021587,2]
[387176000,1758606684140,-400.0,0.00021587,2]
[387176001,1758606684150,-512.62995208,0.00021587,2]
[387176002,1758606684159,-400.0,0.00021587,2]
[387176003,1758606684169,-594.39,0.00021587,2]
[387176004,1758606684179,-400.0,0.00021587,2]
[387176005,1758606684191,-400.0,0.00021587,2]
[387176006,1758606684200,-400.0,0.00021587,2]
[387176007,1758606684209,-400.0,0.00021587,2]
[387176008,1758606684219,-413.61,0.00021587,2]
[387176009,1758606684228,-1791.94,0.00021587,2]
[387176010,1758606684238,-400.0,0.00021587,2]
[387176011,1758606684247,-400.0,0.00021587,2]
[387176012,1758606684256,-419.27582187,0.00021587,2]
[387176013,1758606684266,-487.086498,0.00021587,2]
[387176014,1758606684275,-727.44,0.00021587,2]
[387176015,1758606684284,-400.0,0.00021587,2]
[387176016,1758606684293,-414.47,0.00021587,2]
[387176017,1758606684303,-424.1,0.00021587,2]
[387176018,1758606684313,-400.0,0.00021587,2]
[387176019,1758606684322,-152.19,0.00021587,2]
[387176020,1758606684331,-680.28,0.00021587,2]
[387176021,1758606684341,-400.0,0.00021587,2]
[387176022,1758606684350,-400.0,0.00021587,2]
[387176023,1758606684360,-740.8,0.00021587,2]
[387176024,1758606684370,-400.52,0.00021587,2]
[387176025,1758606684379,-780.25,0.00021587,2]
[387176026,1758606684389,-171.77444804,0.00021587,2]
[387176027,1758606684398,-787.95,0.00021587,2]
[387176028,1758606684408,-400.9,0.00021587,2]
[387176029,1758606684417,-375.99,0.00021587,2]
[387176030,1758606684427,-573.0,0.00021587,2]
[387176031,1758606684436,-439.84,0.00021587,2]
[387176032,1758606684445,-400.0,0.00021587,2]
[387176033,1758606684455,-807.44,0.00021587,2]
[387176034,1758606684464,-1136.38,0.00021587,2]
[387176035,1758606684474,-2423.02,0.00021587,2]
[387176036,1758606684483,-400.0,0.00021587,2]
[387176037,1758606684493,-150.0,0.000216,2]
[387176038,1758606684502,-2000.0,0.00021616,2]
[387176039,1758606684511,-563.0,0.00021619,2]
[387176040,1758606684521,-507.64294463,0.00021619,2]
[387176041,1758606684530,-454.75,0.00021619,2]
[387176042,1758606684540,-604.44,0.00021619,2]
[387176043,1758606684549,-533.49,0.00021619,2]
[387176044,1758606684558,-694.1,0.00021619,2]
[387176045,1758606684567,-400.0,0.00021619,2]
[387176046,1758606684577,-422.59,0.00021619,2]
[387176047,1758606684587,-717.78,0.00021619,2]
[387176048,1758606684596,-431.15,0.00021619,2]
[387176049,1758606684606,-427.27,0.00021619,2]
[387176050,1758606684615,-614.75,0.00021619,2]
[387176051,1758606684625,-669.49,0.00021619,2]
[387176052,1758606684633,-400.0,0.00021619,2]
[387176053,1758606684643,-400.0,0.00021619,2]
[387176054,1758606684652,-418.8,0.00021619,2]
[387176055,1758606684662,-573.35,0.00021619,2]
[387176056,1758606684672,-403.2,0.00021619,2]
[387176057,1758606684681,-400.0,0.00021619,2]
[387176058,1758606684691,-400.0,0.00021619,2]
[387176059,1758606684701,-685.05,0.00021619,2]
[387176060,1758606684710,-266.76492082,0.00021619,2]
[387176061,1758606684719,-435.99,0.00021619,2]
[387176062,1758606684729,-592.9,0.00021619,2]
[387176063,1758606684739,-528.93,0.00021619,2]
[387176064,1758606684748,-796.37,0.00021619,2]
[387176065,1758606684757,-305.70421811,0.00021619,2]
[387176066,1758606684766,-461.3,0.00021619,2]
[387176067,1758606684776,-400.0,0.00021619,2]
[387176068,1758606684785,-400.0,0.00021619,2]
[387176069,1758606684795,-400.0,0.00021619,2]
[387176070,1758606684807,-400.0,0.00021619,2]
[387176071,1758606684823,-551.65,0.00021619,2]
[387176072,1758606684832,-445.76,0.00021619,2]
[387176073,1758606684842,-620.26,0.00021619,2]
[387176074,1758606684851,-474.03,0.00021619,2]
[387176075,1758606684861,-400.0,0.00021619,2]
[387176076,1758606684869,-400.0,0.00021619,2]
[387176077,1758606684879,-400.0,0.00021619,2]
[387176078,1758606684889,-400.0,0.00021619,2]
[387176079,1758606684899,-400.0,0.00021619,2]
[387176080,1758606684909,-1134.69,0.00021619,2]
[387176081,1758606684918,-553.2,0.00021619,2]
[387176082,1758606684928,-400.0,0.00021619,2]
[387176083,1758606684936,-400.0,0.00021619,2]
[387176084,1758606684946,-560.87,0.00021619,2]
[387176085,1758606684955,-669.97,0.00021619,2]
[387176086,1758606684965,-518.47,0.00021619,2]
[387176087,1758606684975,-603.36,0.00021619,2]
[387176088,1758606684984,-507.24,0.00021619,2]
[387176089,1758606684994,-1226.65,0.00021619,2]
[387176090,1758606685003,-199.04103318,0.00021619,2]
[387176091,1758606685013,-510.08,0.00021619,2]
[387176092,1758606685022,-400.0,0.00021619,2]
[387176093,1758606685032,-2244.82,0.00021619,2]
[387176094,1758606685041,-3137.54,0.00021619,2]
[387176095,1758606685051,-3479.82,0.00021619,2]
[387176096,1758606685060,-478.17,0.00021619,2]
[387176097,1758606685070,-1313.4,0.00021619,2]
[387176098,1758606685079,-400.0,0.00021619,2]
[387176099,1758606685088,-766.42,0.00021619,2]
[387176100,1758606685098,-400.0,0.00021619,2]